fUSD/lending_fUSD_20250226
["ID","MTS","AMOUNT","RATE_DAILY","PERIOD"]
[354621778,1740595977099,-1970.34,0.00040821,14]
[354621779,1740595977110,-1219.67,0.00040821,14]
[354621780,1740595977119,-500.0,0.00040821,14]
[354621781,1740595977129,-1258.23,0.00040821,14]
[354621782,1740595977139,-1003.98,0.00040821,14]
[354621783,1740595977148,-802.71,0.00040821,14]
[354621784,1740595977161,-1048.22,0.00040821,14]
[354621785,1740595977171,-12754.69,0.00040821,14]
[354621786,1740595977179,-236.31148922,0.00040821,14]
[354621787,1740595977189,-760.48,0.00040821,14]
[354621788,1740595977198,-1559.74,0.00040821,14]
[354621789,1740595977207,-1039.17,0.00040821,14]
[354621790,1740595977217,-968.47,0.00040821,14]
[354621791,1740595977226,-975.3,0.00040821,14]
[354621792,1740595977235,-884.61,0.00040821,14]
[354621793,1740595977245,-677.65,0.00040821,14]
[354621794,1740595977254,-581.51,0.00040821,14]
[354621795,1740595977263,-559.35,0.00040821,14]
[354621796,1740595977273,-1068.0,0.00040821,14]
[354621797,1740595977282,-1472.3,0.00040821,14]
[354621798,1740595977291,-1096.63,0.00040821,14]
[354621799,1740595977301,-882.85,0.00040821,14]
[354621800,1740595977311,-505.62,0.00040821,14]
[354621801,1740595977320,-1708.56,0.00040821,14]
[354621802,1740595977330,-966.9,0.00040821,14]
[354621803,1740595977340,-1141.53,0.00040821,7]
[354621804,1740595977349,-1382.5,0.00040821,14]
[354621805,1740595977359,-811.04,0.00040821,14]
[354621806,1740595977368,-669.94,0.00040821,14]
[354621807,1740595977377,-691.77,0.00040821,14]
[354621808,1740595977387,-530.0,0.00040821,14]
[354621809,1740595977396,-1910.93,0.00040821,14]
[354621810,1740595977409,-500.0,0.00040821,14]
[354621811,1740595977419,-874.49,0.00040821,14]
[354621812,1740595977428,-776.22,0.00040821,14]
[354621813,1740595977438,-2493.41,0.00040821,14]
[354621814,1740595977448,-811.0,0.00040821,14]
[354621815,1740595977458,-2143.28,0.00040821,14]
[354621816,1740595977467,-2617.36,0.00040821,14]
[354621817,1740595977477,-1621.78,0.00040821,14]
[354621818,1740595977487,-2319.53,0.00040821,14]
[354621819,1740595977496,-500.0,0.00040821,14]
[354621820,1740595977506,-500.0,0.00040821,14]
[354621821,1740595977516,-529.04,0.00040821,14]
[354621822,1740595977525,-768.45,0.00040821,14]
[354621823,1740595977534,-500.0,0.00040821,14]
[354621824,1740595977544,-1163.2,0.00040821,14]
[354621825,1740595977553,-500.0,0.00040821,14]
[354621826,1740595977563,-911.1,0.00040821,14]
[354621827,1740595977572,-2143.46,0.00040821,14]
[354621828,1740595977582,-1280.98,0.00040821,14]
[354621829,1740595977591,-500.0,0.00040821,14]
[354621830,1740595977600,-1855.75,0.00040821,14]
[354621831,1740595977610,-873.58,0.00040821,14]
[354621832,1740595977619,-939.46,0.00040821,14]
[354621833,1740595977628,-309.29896029,0.00040821,14]
[354621834,1740595977637,-1902.32,0.00040821,14]
[354621835,1740595977647,-1142.01,0.00040821,14]
[354621836,1740595977658,-938.37,0.00040821,14]
[354621837,1740595977667,-800.79,0.00040821,14]
[354621838,1740595977676,-512.47,0.00040821,14]
[354621839,1740595977685,-2507.28,0.00040821,2]
[354621840,1740595977694,-731.9,0.00040821,14]
[354621841,1740595977704,-1981.71,0.00040821,14]
[354621842,1740595977713,-1276.51,0.00040821,14]
[354621843,1740595977723,-262.54022348,0.00040821,14]
[354621844,1740595977732,-708.24,0.00040821,14]
[354621845,1740595977741,-500.0,0.00040821,14]
[354621846,1740595977750,-2733.74,0.00040821,14]
[354621847,1740595977760,-2252.01,0.00040821,14]
[354621848,1740595977770,-891.14,0.00040821,14]
[354621849,1740595977781,-552.36,0.00040821,14]
[354621850,1740595977791,-630.12,0.00040821,14]
[354621851,1740595977801,-642.98,0.00040821,14]
[354621852,1740595977810,-1991.31,0.00040821,14]
[354621853,1740595977821,-1022.27,0.00040821,14]
[354621854,1740595977831,-1294.07,0.00040821,14]
[354621855,1740595977841,-1853.21,0.00040821,14]
[354621856,1740595977851,-630.96,0.00040821,14]
[354621857,1740595977861,-1573.28,0.00040821,14]
[354621858,1740595977871,-2426.57,0.00040821,14]
[354621859,1740595977884,-2490.78,0.00040821,14]
[354621860,1740595977909,-1150.32,0.00040821,14]
[354621861,1740595977919,-715.02,0.00040821,14]
[354621862,1740595977929,-3484.94,0.00040821,14]
[354621863,1740595977939,-2771.33,0.00040821,14]
[354621864,1740595977949,-1596.62,0.00040821,14]
[354621865,1740595977959,-1876.78,0.00040821,14]
[354621866,1740595977969,-1560.4,0.00040821,14]
[354621867,1740595977986,-6192.85,0.00040821,14]
[354621868,1740595977997,-647.32,0.00040821,14]
[354621869,1740595978008,-1726.29,0.00040821,14]
[354621870,1740595978020,-1676.26,0.00040821,14]
[354621871,1740595978030,-2725.95,0.00040821,14]
[354621872,1740595978041,-563.72,0.00040821,14]
[354621873,1740595978051,-944.42,0.00040821,14]
[354621874,1740595978061,-3837.57,0.00040821,14]
[354621875,1740595978071,-1361.35,0.00040821,14]
[354621876,1740595978081,-1302.57,0.00040821,14]
[354621877,1740595978091,-688.53,0.00040821,14]
[354621878,1740595978100,-11693.75,0.00040821,14]
[354621879,1740595978110,-861.86,0.00040821,14]
[354621880,1740595978120,-3063.11,0.00040821,14]
[354621881,1740595978130,-2812.52,0.00040821,14]
[354621882,1740595978139,-1132.99,0.00040821,14]
[354621883,1740595978149,-2332.02,0.00040821,14]
[354621884,1740595978163,-3032.5,0.00040821,14]
[354621885,1740595978172,-1403.52,0.00040821,14]
[354621886,1740595978183,-2514.92,0.00040821,14]
[354621887,1740595978192,-840.17,0.00040821,14]
[354621888,1740595978201,-3285.15,0.00040821,14]
[354621889,1740595978209,-1217.25,0.00040821,14]
[354621890,1740595978218,-2864.92,0.00040821,14]
[354621891,1740595978228,-829.58,0.00040821,14]
[354621892,1740595978237,-521.32,0.00040821,14]
[354621893,1740595978247,-1548.49,0.00040821,14]
[354621894,1740595978256,-1797.4,0.00040821,14]
[354621895,1740595978265,-3783.79,0.00040821,14]
[354621896,1740595978275,-577.91,0.00040821,14]
[354621897,1740595978284,-1141.09,0.00040821,14]
[354621898,1740595978294,-6297.9,0.00040821,14]
[354621899,1740595978304,-2194.13,0.00040821,14]
[354621900,1740595978313,-2625.14,0.00040821,14]
[354621901,1740595978323,-1289.77,0.00040821,14]
[354621902,1740595978332,-564.43,0.00040821,14]
[354621903,1740595978341,-2622.68,0.00040821,14]
[354621904,1740595978350,-3149.85,0.00040821,14]
[354621905,1740595978360,-806.4,0.00040821,14]
[354621906,1740595978368,-2632.85,0.00040821,14]
[354621907,1740595978378,-2112.2,0.00040821,14]
[354621908,1740595978387,-3833.32,0.00040821,14]
[354621909,1740595978397,-1648.8,0.00040821,14]
[354621910,1740595978407,-5487.93,0.00040821,14]
[354621911,1740595978417,-2311.59,0.00040821,14]
[354621912,1740595978426,-974.58,0.00040821,14]
[354621913,1740595978435,-565.43,0.00040821,14]
[354621914,1740595978445,-1343.0,0.00040821,14]
[354621915,1740595978454,-11841.49,0.00040821,14]
[354621916,1740595978463,-567.13,0.00040821,14]
[354621917,1740595978472,-3413.54,0.00040821,14]
[354621918,1740595978481,-1833.27,0.00040821,14]
[354621919,1740595978491,-995.26,0.00040821,14]
[354621920,1740595978500,-3517.26,0.00040821,14]
[354621921,1740595978510,-1238.69,0.00040821,14]
[354621922,1740595978520,-1700.63,0.00040821,14]
[354621923,1740595978530,-2752.94,0.00040821,14]
[354621924,1740595978539,-1862.26,0.00040821,14]
[354621925,1740595978549,-4507.25,0.00040821,14]
[354621926,1740595978558,-7439.57,0.00040821,14]
[354621927,1740595978568,-1154.79,0.00040821,14]
[354621928,1740595978577,-639.34,0.00040821,14]
[354621929,1740595978587,-1572.85,0.00040821,14]
[354621930,1740595978596,-3421.4,0.00040821,14]
[354621931,1740595978606,-1778.87,0.00040821,14]
[354621932,1740595978615,-1616.96,0.00040821,14]
[354621933,1740595978624,-696.16,0.00040821,14]
[354621934,1740595978634,-9182.73,0.00040821,14]
[354621935,1740595978643,-6709.93,0.00040821,14]
[354621936,1740595978654,-683.41,0.00040821,14]
[354621937,1740595978663,-682.72,0.00040821,14]
[354621938,1740595978673,-4316.65,0.00040821,14]
[354621939,1740595978682,-546.58,0.00040821,14]
[354621940,1740595978692,-3317.95,0.00040821,14]
[354621941,1740595978702,-1576.59,0.00040821,14]
[354621942,1740595978712,-604.02,0.00040821,14]
[354621943,1740595978722,-682.23,0.00040821,14]
[354621944,1740595978731,-876.15,0.00040821,14]
[354621945,1740595978741,-1898.38,0.00040821,14]
[354621946,1740595978750,-3418.9,0.00040821,14]
[354621947,1740595978759,-749.16,0.00040821,14]
[354621948,1740595978768,-2938.03,0.00040821,14]
[354621949,1740595978778,-1228.02,0.00040821,14]
[354621950,1740595978787,-2258.95,0.00040821,14]
[354621951,1740595978797,-1052.77,0.00040821,14]
[354621952,1740595978807,-500.0,0.00040821,14]
[354621953,1740595978816,-932.43,0.00040821,14]
[354621954,1740595978825,-1087.18,0.00040821,14]
[354621955,1740595978834,-3770.5,0.00040821,14]
[354621956,1740595978844,-4443.37,0.00040821,14]
[354621957,1740595978853,-4370.98,0.00040821,14]
[354621958,1740595978863,-841.55,0.00040821,14]
[354621959,1740595978872,-1077.8,0.00040821,14]
[354621960,1740595979066,-1662.55,0.00040821,14]
[354621961,1740595979077,-1684.75,0.00040821,14]
[354621962,1740595979087,-732.3,0.00040821,14]
[354621963,1740595979096,-669.42,0.00040821,14]
[354621964,1740595979106,-2153.43,0.00040821,14]
[354621965,1740595979116,-2455.03,0.00040821,14]
[354621966,1740595979125,-500.0,0.00040821,14]
[354621967,1740595979135,-8707.22,0.00040821,14]
[354621968,1740595979146,-555.94,0.00040821,14]
[354621969,1740595979157,-661.77,0.00040821,14]
[354621970,1740595979166,-1962.86,0.00040821,14]
[354621971,1740595979176,-1465.58,0.00040821,14]
[354621972,1740595979186,-14121.36,0.00040821,14]
[354621973,1740595979196,-3029.66,0.00040821,14]
[354621974,1740595979206,-3158.55,0.00040821,14]
[354621975,1740595979216,-677.06,0.00040821,14]
[354621976,1740595979226,-1234.59,0.00040821,14]
[354621977,1740595979235,-1124.82,0.00040821,14]
[354621978,1740595979245,-1087.29,0.00040821,14]
[354621979,1740595979254,-1184.83,0.00040821,14]
[354621980,1740595979264,-766.23,0.00040821,14]
[354621981,1740595979273,-1001.3,0.00040821,14]
[354621982,1740595979282,-617.69,0.00040821,14]
[354621983,1740595979291,-1731.67,0.00040821,14]
[354621984,1740595979301,-3138.97,0.00040821,14]
[354621985,1740595979310,-527.05,0.00040821,14]
[354621986,1740595979319,-1244.63,0.00040821,14]
[354621987,1740595979328,-850.11,0.00040821,14]
[354621988,1740595979337,-2099.68,0.00040821,14]
[354621989,1740595979346,-1394.32,0.00040821,14]
[354621990,1740595979356,-1086.92,0.00040821,14]
[354621991,1740595979365,-1256.63,0.00040821,14]
[354621992,1740595979375,-1776.24,0.00040821,14]
[354621993,1740595979384,-3802.94,0.00040821,14]
[354621994,1740595979393,-772.03,0.00040821,14]
[354621995,1740595979403,-500.0,0.00040821,14]
[354621996,1740595979412,-773.62,0.00040821,14]
[354621997,1740595979422,-666.36,0.00040821,14]
[354621998,1740595979431,-1317.17,0.00040821,14]
[354621999,1740595979440,-1507.85,0.00040821,14]
[354622000,1740595979449,-1264.32,0.00040821,14]
[354622001,1740595979459,-4383.06,0.00040821,14]
[354622002,1740595979469,-2961.3,0.00040821,14]
[354622003,1740595979478,-1388.89,0.00040821,14]
[354622004,1740595979487,-556.93,0.00040821,14]
[354622005,1740595979496,-3155.81,0.00040821,14]
[354622006,1740595979506,-561.98,0.00040821,14]
[354622007,1740595979515,-2270.77,0.00040821,14]
[354622008,1740595979524,-2155.24389955,0.00040821,14]
[354622009,1740595979534,-1234.24075464,0.00040821,14]
[354622010,1740595979543,-377.46614524,0.00040822,30]
[354622011,1740595979553,-500.0,0.00040833,2]
[354622012,1740595979563,-500.0,0.00040852,2]
[354622013,1740595979572,-500.0,0.00040892,2]
[354622014,1740595979581,-8530.62005518,0.000409,2]
[354622015,1740595979590,-636.16374804,0.00040995,2]
[354622016,1740595979600,-44064.5022169,0.00041,14]
[354622017,1740595979610,-2865.53497794,0.00041,120]
[354622018,1740595979619,-5818.4,0.00041,117]
[354622019,1740595979629,-377.46614524,0.00041014,30]
[354622020,1740595979639,-208.0,0.0004104,2]
[354622021,1740595979648,-1060.0,0.00041064,5]
[354622022,1740595979660,-672.636069,0.00041095,14]
[354622023,1740595979669,-676.71,0.00041095,14]
[354622024,1740595979679,-1501.590989,0.00041095,14]
[354622025,1740595979689,-870.39,0.00041095,14]
[354622026,1740595979698,-814.89,0.00041095,14]
[354622027,1740595979708,-1069.27,0.00041095,14]
[354622028,1740595979718,-1090.2,0.00041095,14]
[354622029,1740595979727,-511.27729451,0.00041095,14]
[354622030,1740595979737,-1150.39,0.00041095,14]
[354622031,1740595979747,-316.97496285,0.00041095,14]
[354622032,1740595979756,-701.36,0.00041095,14]
[354622033,1740595979766,-841.82,0.00041095,14]
[354622034,1740595979775,-288.12423687,0.00041095,14]
[354622035,1740595979785,-670.19,0.00041095,14]
[354622036,1740595979794,-1844.05,0.00041095,14]
[354622037,1740595979804,-747.92,0.00041095,14]
[354622038,1740595979814,-835.83,0.00041095,14]
[354622039,1740595979824,-738.6,0.00041095,14]
[354622040,1740595979833,-1533.87,0.00041095,14]
[354622041,1740595979843,-1414.25,0.00041095,14]
[354622042,1740595979852,-865.08,0.00041095,14]
[354622043,1740595979862,-633.98,0.00041095,14]
[354622044,1740595979872,-600.33,0.00041095,14]
[354622045,1740595979881,-580.36,0.00041095,14]
[354622046,1740595979890,-742.35,0.00041095,14]
[354622047,1740595979900,-732.49,0.00041095,14]
[354622048,1740595979912,-527.1,0.00041095,14]
[354622049,1740595979922,-500.0,0.00041095,14]
[354622050,1740595979931,-935.03,0.00041095,14]
[354622051,1740595979941,-581.31,0.00041095,14]
[354622052,1740595979951,-1000.0,0.00041095,120]
[354622053,1740595979960,-689.42,0.00041095,14]
[354622054,1740595979970,-689.49,0.00041095,14]
[354622055,1740595979985,-543.41,0.00041095,14]
[354622056,1740595979995,-571.34,0.00041095,14]
[354622057,1740595980005,-696.87,0.00041095,14]
[354622058,1740595980015,-1290.39,0.00041095,14]
[354622059,1740595980027,-546.44,0.00041095,14]
[354622060,1740595980037,-594.86,0.00041095,14]
[354622061,1740595980048,-635.18,0.00041095,14]
[354622062,1740595980059,-858.4,0.00041095,14]
[354622063,1740595980070,-617.43,0.00041095,14]
[354622064,1740595980080,-413.41028422,0.00041095,14]
[354622065,1740595980089,-665.21,0.00041095,14]
[354622066,1740595980100,-500.0,0.00041095,14]
[354622067,1740595980110,-1850.02,0.00041095,14]
[354622068,1740595980120,-1161.63,0.00041095,14]
[354622069,1740595980130,-1036.04,0.00041095,14]
[354622070,1740595980140,-2240.29,0.00041095,14]
[354622071,1740595980149,-608.93,0.00041095,14]
[354622072,1740595980162,-239.81155178,0.00041095,14]
[354622073,1740595980172,-2310.8,0.00041095,14]
[354622074,1740595980183,-500.0,0.00041095,120]
[354622075,1740595980194,-500.0,0.00041095,14]
[354622076,1740595980205,-1018.81,0.00041095,14]
[354622077,1740595980215,-871.69,0.00041095,14]
[354622078,1740595980225,-1006.27,0.00041095,14]
[354622079,1740595980236,-1116.49,0.00041095,14]
[354622080,1740595980247,-595.91,0.00041095,14]
[354622081,1740595980257,-641.45,0.00041095,14]
[354622082,1740595980267,-772.83,0.00041095,14]
[354622083,1740595980278,-1308.99,0.00041095,14]
[354622084,1740595980288,-872.15,0.00041095,14]
[354622085,1740595980298,-935.7,0.00041095,14]
[354622086,1740595980308,-649.25,0.00041095,14]
[354622087,1740595980318,-1082.33,0.00041095,14]
[354622088,1740595980328,-500.0,0.00041095,14]
[354622089,1740595980338,-513.39,0.00041095,14]
[354622090,1740595980348,-1176.81,0.00041095,14]
[354622091,1740595980358,-1686.11,0.00041095,14]
[354622092,1740595980367,-547.24,0.00041095,14]
[354622093,1740595980378,-538.09,0.00041095,14]
[354622094,1740595980387,-811.61,0.00041095,14]
[354622095,1740595980396,-1804.38,0.00041095,14]
[354622096,1740595980408,-969.08,0.00041095,14]
[354622097,1740595980417,-2234.9,0.00041095,14]
[354622098,1740595980427,-877.13,0.00041095,14]
[354622099,1740595980437,-582.64,0.00041095,14]
[354622100,1740595980446,-500.0,0.00041095,14]
[354622101,1740595980456,-1855.35,0.00041095,14]
[354622102,1740595980466,-500.0,0.00041095,14]
[354622103,1740595980475,-1019.59,0.00041095,14]
[354622104,1740595980485,-2120.11,0.00041095,14]
[354622105,1740595980494,-1021.29,0.00041095,14]
[354622106,1740595980503,-1613.94,0.00041095,14]
[354622107,1740595980512,-572.27,0.00041095,14]
[354622108,1740595980521,-982.48,0.00041095,14]
[354622109,1740595980531,-1105.78,0.00041095,14]
[354622110,1740595980541,-2258.29,0.00041095,14]
[354622111,1740595980551,-638.9350253,0.00041095,14]
[354622112,1740595980560,-1496.14,0.00041095,14]
[354622113,1740595980570,-1313.98,0.00041095,14]
[354622114,1740595980579,-782.62,0.00041095,14]
[354622115,1740595980588,-633.15,0.00041095,14]
[354622116,1740595980598,-1614.67,0.00041095,14]
[354622117,1740595980607,-2802.17,0.00041095,120]
[354622118,1740595980617,-777.94,0.00041095,14]
[354622119,1740595980626,-1119.74,0.00041095,14]
[354622120,1740595980636,-630.05,0.00041095,14]
[354622121,1740595980645,-500.0,0.00041095,14]
[354622122,1740595980656,-1550.01,0.00041095,14]
[354622123,1740595980665,-898.54,0.00041095,14]
[354622124,1740595980674,-986.29,0.00041095,14]
[354622125,1740595980683,-666.5,0.00041095,14]
[354622126,1740595980693,-1800.45,0.00041095,14]
[354622127,1740595980702,-1038.19,0.00041095,14]
[354622128,1740595980711,-722.35,0.00041095,14]
[354622129,1740595980721,-777.79,0.00041095,14]
[354622130,1740595980731,-583.31,0.00041095,14]
[354622131,1740595980740,-1016.47,0.00041095,14]
[354622132,1740595980749,-746.65,0.00041095,14]
[354622133,1740595980758,-529.67,0.00041095,14]
[354622134,1740595980768,-806.05,0.00041095,14]
[354622135,1740595980777,-886.7,0.00041095,14]
[354622136,1740595980786,-820.28,0.00041095,14]
[354622137,1740595980796,-1501.14,0.00041095,14]
[354622138,1740595980805,-921.34,0.00041095,14]
[354622139,1740595980814,-699.59,0.00041095,14]
[354622140,1740595980823,-1003.76,0.00041095,14]
[354622141,1740595980833,-1495.63,0.00041095,14]
[354622142,1740595980842,-834.44,0.00041095,14]
[354622143,1740595980851,-831.3,0.00041095,14]
[354622144,1740595980861,-675.74,0.00041095,14]
[354622145,1740595980870,-917.03,0.00041095,14]
[354622146,1740595980879,-551.68,0.00041095,14]
[354622147,1740595980888,-681.62,0.00041095,14]
[354622148,1740595980898,-1958.47,0.00041095,14]
[354622149,1740595980911,-1067.6,0.00041095,14]
[354622150,1740595980920,-500.0,0.00041095,14]
[354622151,1740595980929,-636.63,0.00041095,14]
[354622152,1740595980939,-1007.51,0.00041095,14]
[354622153,1740595980948,-826.67,0.00041095,14]
[354622154,1740595980957,-532.65,0.00041095,14]
[354622155,1740595980967,-1255.98,0.00041095,14]
[354622156,1740595980978,-1749.77,0.00041095,120]
[354622157,1740595980989,-1084.65,0.00041095,14]
[354622158,1740595980999,-510.04,0.00041095,14]
[354622159,1740595981008,-1101.48,0.00041095,14]
[354622160,1740595981018,-634.72,0.00041095,14]
[354622161,1740595981031,-842.79,0.00041095,14]
[354622162,1740595981041,-861.46,0.00041095,14]
[354622163,1740595981051,-765.4,0.00041095,14]
[354622164,1740595981060,-604.9,0.00041095,14]
[354622165,1740595981069,-1116.67,0.00041095,14]
[354622166,1740595981078,-500.0,0.00041095,14]
[354622167,1740595981088,-1441.7,0.00041095,14]
[354622168,1740595981097,-754.28,0.00041095,14]
[354622169,1740595981107,-929.23,0.00041095,14]
[354622170,1740595981116,-718.11,0.00041095,14]
[354622171,1740595981126,-1403.66,0.00041095,14]
[354622172,1740595981135,-1217.5,0.00041095,14]
[354622173,1740595981144,-1107.15,0.00041095,14]
[354622174,1740595981155,-1834.12,0.00041095,14]
[354622175,1740595981164,-902.19,0.00041095,14]
[354622176,1740595981174,-561.55,0.00041095,14]
[354622177,1740595981183,-565.94,0.00041095,14]
[354622178,1740595981193,-1996.52,0.00041095,14]
[354622179,1740595981276,-500.0,0.00041095,14]
[354622180,1740595981286,-563.43,0.00041095,14]
[354622181,1740595981296,-1467.19,0.00041095,14]
[354622182,1740595981306,-1321.18,0.00041095,14]
[354622183,1740595981315,-1902.42,0.00041095,14]
[354622184,1740595981325,-1140.97,0.00041095,14]
[354622185,1740595981335,-528.46,0.00041095,14]
[354622186,1740595981344,-651.71,0.00041095,14]
[354622187,1740595981354,-1073.87,0.00041095,14]
[354622188,1740595981364,-1235.9,0.00041095,14]
[354622189,1740595981374,-583.0,0.00041095,14]
[354622190,1740595981384,-642.59,0.00041095,14]
[354622191,1740595981393,-1162.07,0.00041095,14]
[354622192,1740595981403,-1175.03,0.00041095,14]
[354622193,1740595981413,-500.0,0.00041095,14]
[354622194,1740595981423,-1123.12,0.00041095,14]
[354622195,1740595981432,-1360.38,0.00041095,14]
[354622196,1740595981442,-990.04,0.00041095,14]
[354622197,1740595981451,-758.81,0.00041095,14]
[354622198,1740595981460,-500.0,0.00041095,14]
[354622199,1740595981470,-1858.11,0.00041095,14]
[354622200,1740595981479,-836.2,0.00041095,14]
[354622201,1740595981489,-743.78,0.00041095,14]
[354622202,1740595981499,-552.16,0.00041095,14]
[354622203,1740595981508,-957.01,0.00041095,14]
[354622204,1740595981517,-1949.61,0.00041095,14]
[354622205,1740595981526,-1008.01,0.00041095,14]
[354622206,1740595981535,-1466.22,0.00041095,14]
[354622207,1740595981544,-1152.19,0.00041095,14]
[354622208,1740595981554,-2482.2,0.00041095,14]
[354622209,1740595981564,-1828.52,0.00041095,14]
[354622210,1740595981573,-527.63,0.00041095,14]
[354622211,1740595981582,-873.77,0.00041095,14]
[354622212,1740595981591,-1665.67,0.00041095,14]
[354622213,1740595981600,-500.0,0.00041095,14]
[354622214,1740595981609,-1934.6,0.00041095,14]
[354622215,1740595981619,-786.06,0.00041095,14]
[354622216,1740595981628,-1875.12,0.00041095,14]
[354622217,1740595981641,-1075.72,0.00041095,14]
[354622218,1740595981651,-554.85,0.00041095,14]
[354622219,1740595981664,-956.32,0.00041095,14]
[354622220,1740595981674,-1163.37,0.00041095,14]
[354622221,1740595981684,-500.0,0.00041095,14]
[354622222,1740595981694,-1037.67,0.00041095,14]
[354622223,1740595981704,-2110.11,0.00041095,14]
[354622224,1740595981713,-655.67,0.00041095,14]
[354622225,1740595981723,-1000.0,0.00041095,120]
[354622226,1740595981733,-1000.0,0.00041095,120]
[354622227,1740595981743,-1000.0,0.00041095,120]
[354622228,1740595981753,-313.32452433,0.00041095,120]
[354622229,1740595981763,-519.01,0.00041095,14]
[354622230,1740595981772,-533.25080391,0.00041095,14]
[354622231,1740595981782,-754.12,0.00041095,14]
[354622232,1740595981793,-1351.39,0.00041095,14]
[354622233,1740595981804,-1595.01,0.00041095,14]
[354622234,1740595981816,-978.64,0.00041095,14]
[354622235,1740595981826,-883.23,0.00041095,14]
[354622236,1740595981836,-544.48,0.00041095,14]
[354622237,1740595981846,-1282.93,0.00041095,14]
[354622238,1740595981856,-1979.65,0.00041095,14]
[354622239,1740595981866,-1465.82,0.00041095,14]
[354622240,1740595981877,-1395.89,0.00041095,14]
[354622241,1740595981887,-854.86,0.00041095,14]
[354622242,1740595981898,-1505.0,0.00041095,14]
[354622243,1740595981911,-924.09,0.00041095,14]
[354622244,1740595981921,-711.08,0.00041095,14]
[354622245,1740595981932,-552.43,0.00041095,14]
[354622246,1740595981942,-895.76,0.00041095,14]
[354622247,1740595981953,-932.59,0.00041095,14]
[354622248,1740595981963,-1558.86,0.00041095,14]
[354622249,1740595981975,-912.19,0.00041095,14]
[354622250,1740595981988,-551.46,0.00041095,14]
[354622251,1740595981998,-3271.55,0.00041095,14]
[354622252,1740595982009,-3117.32,0.00041095,14]
[354622253,1740595982021,-896.05,0.00041095,14]
[354622254,1740595982032,-1469.5,0.00041095,14]
[354622255,1740595982043,-1261.87,0.00041095,120]
[354622256,1740595982053,-1261.87,0.00041095,120]
[354622257,1740595982062,-1261.87,0.00041095,120]
[354622258,1740595982073,-1261.87,0.00041095,120]
[354622259,1740595982083,-1970.34,0.00041095,14]
[354622260,1740595982092,-1261.87,0.00041095,120]
[354622261,1740595982102,-1261.87,0.00041095,120]
[354622262,1740595982112,-1261.87,0.00041095,120]
[354622263,1740595982122,-1261.87,0.00041095,120]
[354622264,1740595982132,-1219.67,0.00041095,14]
[354622265,1740595982142,-1261.87,0.00041095,120]
[354622266,1740595982152,-1261.87,0.00041095,120]
[354622267,1740595982165,-1261.87,0.00041095,120]
[354622268,1740595982175,-1261.87,0.00041095,120]
[354622269,1740595982185,-1261.87,0.00041095,120]
[354622270,1740595982194,-1261.87,0.00041095,120]
[354622271,1740595982204,-1261.87,0.00041095,120]
[354622272,1740595982215,-1261.87,0.00041095,120]
[354622273,1740595982224,-1261.87,0.00041095,120]
[354622274,1740595982234,-1261.87,0.00041095,120]
[354622275,1740595982243,-1261.87,0.00041095,120]
[354622276,1740595982253,-1261.87,0.00041095,120]
[354622277,1740595982262,-403.25243216,0.00041095,14]